[Event "ESP-chT 2nd Division 2019"]
[Site "Linares"]
[Date "2019.08.21"]
[Round "4.15"]
[White "Lorenzo Serrano, Henar"]
[Black "Lopez Guerrero, Jose Miguel"]
[Result "0-1"]
[ECO "B23"]
[WhiteElo "1719"]
[BlackElo "2079"]
[Annotator "NA"]
[PlyCount "94"]
[EventDate "2019.08.19"]
[EventType "team-tourn"]
[EventCountry "ESP"]
[SourceTitle "playchess.com"]
[Source "ChessBase"]
[SourceQuality "1"]
[TimeControl "5400+30"]

1. e4 {[%emt 0:00:00]} c5 {[%emt 0:00:00]} 2. Nc3 {[%emt 0:00:00]} e6 {[%emt 0:00:00]} 3. g3 {[%emt 0:00:00]} d5 {[%emt 0:00:33]} 4. exd5 {[%emt 0:01:36]} exd5 5. d4 Nf6 {[%emt 0:02:34]} 6. Bg5 {[%emt 0:09:04]} Be6 {[%emt 0:00:25]} 7. Bg2 {[%emt 0:01:09]} cxd4 {[%emt 0:00:17]} 8. Bxf6 {[%emt 0:04:44]} Qxf6 {[%emt 0:00:46]} 9. Nxd5 {[%emt 0:06:20]} Bxd5 {[%emt 0:00:20]} 10. Qe2+ {[%emt 0:03:19]} Be6 {[%emt 0:08:18]} 11. Bxb7 {[%emt 0:04:12]} Nd7 {[%emt 0:00:41]} 12. Bxa8 {[%emt 0:01:02]} Bb4+ {[%emt 0:00:08]} 13. Kf1 {[%emt 0:03:43]} O-O {[%emt 0:00:02]} 14. Qf3 {[%emt 0:01:45]} Bc4+ {[%emt 0:00:54]} 15. Kg2 {[%emt 0:01:38]} Qd8 {[%emt 0:00:53]} 16. Be4 {[%emt 0:01:33]} Nf6 {[%emt 0:00:07]} 17. Bc6 {[%emt 0:08:45]} Qb6 {[%emt 0:00:55]} 18. b3 {[%emt 0:05:07]} Ba6 {[%emt 0:00:13]} 19. g4 {[%emt 0:14:43]} Rc8 {[%emt 0:05:06]} 20. Ba8 {[%emt 0:00:43]} Qd8 {[%emt 0:02:31]} 21. Bb7 {[%emt 0:02:20]} Rc3 {[%emt 0:00:15]} 22. Bxa6 {[%emt 0:02:24]} Rxf3 {[%emt 0:00:19]} 23. Nxf3 {[%emt 0:00:31]} Nxg4 {[%emt 0:01:14]} 24. Rad1 {[%emt 0:02:14]} Bc3 {[%emt 0:00:48]} 25. Rd3 {[%emt 0:00:38]} Qf6 {[%emt 0:02:41]} 26. Bb7 {[%emt 0:01:20]} Qg6 {[%emt 0:00:34]} 27. Kf1 {[%emt 0:03:27]} Qb6 {[%emt 0:01:30]} 28. Rg1 {[%emt 0:01:45]} Nf6 {[%emt 0:01:41]} 29. Ba8 {[%emt 0:00:56]} g6 {[%emt 0:01:29]} 30. Rg5 {[%emt 0:02:57]} Qb8 {[%emt 0:01:50]} 31. Bc6 {[%emt 0:00:22]} Qf4 {[%emt 0:00:16]} 32. Rb5 {[%emt 0:01:14]} Qc1+ {[%emt 0:00:54]} 33. Kg2 {[%emt 0:00:43]} Qxc2 {[%emt 0:00:12]} 34. Ne5 {[%emt 0:01:22]} Ng4 {[%emt 0:09:50]} 35. Rf3 {[%emt 0:00:42]} Nxe5 {[%emt 0:00:17]} 36. Rxe5 {[%emt 0:00:05]} f5 {[%emt 0:00:19]} 37. Bd5+ {[%emt 0:01:13]} Kf8 {[%emt 0:01:00]} 38. Bc4 {[%emt 0:00:25]} Qxa2 {[%emt 0:02:35]} 39. Rh3 {[%emt 0:01:18]} d3 {[%emt 0:11:22]} 40. Rc5 {[%emt 0:03:03]} Bd4 {[%emt 0:02:00]} 41. Rc8+ {[%emt 0:03:33]} Ke7 {[%emt 0:00:57]} 42. Rxh7+ {[%emt 0:07:16]} Kf6 {[%emt 0:00:31]} 43. h4 {[%emt 0:00:43]} Qxf2+ {[%emt 0:00:13]} 44. Kh3 {[%emt 0:00:07]} Ke5 {[%emt 0:01:50]} 45. Rg7 {[%emt 0:01:47]} d2 {[%emt 0:01:22]} 46. Be2 {[%emt 0:00:20]} Kf4 {[%emt 0:00:14]} 47. Rxg6 {[%emt 0:00:37]} Qxe2 {[%emt 0:00:20]} 0-1

[Event "ESP-chT 2nd Division 2019"]
[Site "Linares"]
[Date "2019.08.21"]
[Round "4.16"]
[White "Narciso Dublan, Marc"]
[Black "Moreno Trujillo, Alejandro"]
[Result "1/2-1/2"]
[ECO "A45"]
[WhiteElo "2483"]
[BlackElo "2519"]
[Annotator "ChessBase"]
[PlyCount "163"]
[EventDate "2019.08.19"]
[EventType "team-tourn"]
[EventCountry "ESP"]
[SourceTitle "playchess.com"]
[Source "ChessBase"]
[SourceQuality "1"]
[TimeControl "5400+30"]

1. d4 {[%emt 0:00:00]} Nf6 {[%emt 0:00:00]} 2. Bg5 {[%emt 0:00:04]} e6 {[%emt 0:00:41]} 3. e4 {[%emt 0:00:16]} h6 {[%emt 0:00:27]} 4. Bxf6 {[%emt 0:00:07]} Qxf6 {[%emt 0:00:07]} 5. c3 {[%emt 0:00:16]} d5 {[%emt 0:02:16]} 6. Bd3 {[%emt 0:00:20]} Qd8 {[%emt 0:04:04]} 7. Nf3 {[%emt 0:00:34]} Be7 {[%emt 0:04:09]} 8. Nbd2 {[%emt 0:01:18]} Nd7 {[%emt 0:01:33]} 9. O-O {[%emt 0:00:48]} dxe4 {[%emt 0:04:17]} 10. Nxe4 {[%emt 0:00:33]} b6 {[%emt 0:03:14]} 11. Qe2 {[%emt 0:00:37]} Bb7 {[%emt 0:01:04]} 12. Rad1 {[%emt 0:00:20]} O-O {[%emt 0:04:21]} 13. Bc2 {[%emt 0:03:36]} Nf6 {[%emt 0:04:45]} 14. Ne5 {[%emt 0:05:11]} Nxe4 {[%emt 0:04:59]} 15. Bxe4 {[%emt 0:00:20]} Bxe4 {[%emt 0:00:10]} 16. Qxe4 {[%emt 0:00:05]} Qd5 {[%emt 0:00:11]} 17. Qxd5 {[%emt 0:02:43]} exd5 {[%emt 0:00:07]} 18. Rfe1 {[%emt 0:15:14]} Rfe8 {[%emt 0:17:29]} 19. g3 {[%emt 0:02:35]} Bd6 {[%emt 0:03:41]} 20. Ng4 {[%emt 0:07:08]} h5 {[%emt 0:04:40]} 21. Rxe8+ {[%emt 0:04:04]} Rxe8 {[%emt 0:00:07]} 22. Ne3 {[%emt 0:00:02]} c6 {[%emt 0:00:19]} 23. Kf1 {[%emt 0:00:11]} g6 {[%emt 0:01:44]} 24. Ke2 {[%emt 0:09:41]} Kf8 {[%emt 0:08:59]} 25. Kd3 {[%emt 0:01:22]} Ke7 {[%emt 0:01:52]} 26. a4 {[%emt 0:06:25]} Kd7 {[%emt 0:02:26]} 27. b4 {[%emt 0:00:49]} a6 {[%emt 0:05:26]} 28. Rc1 {[%emt 0:05:28]} Bc7 {[%emt 0:05:06]} 29. f4 {[%emt 0:07:05]} b5 {[%emt 0:02:02]} 30. Ra1 {[%emt 0:01:19]} Kc8 {[%emt 0:01:12]} 31. Ng2 {[%emt 0:12:22]} f6 {[%emt 0:05:04]} 32. axb5 {[%emt 0:02:11]} axb5 {[%emt 0:00:06]} 33. Rf1 {[%emt 0:01:04]} Kd7 {[%emt 0:03:42]} 34. Rf2 {[%emt 0:08:48]} Bd6 {[%emt 0:00:48]} 35. Ra2 {[%emt 0:01:02]} Bc7 {[%emt 0:01:49]} 36. Ra7 {[%emt 0:00:38]} Kc8 {[%emt 0:01:33]} 37. Ra8+ {[%emt 0:01:48]} Bb8 {[%emt 0:00:45]} 38. Ra6 {[%emt 0:01:00]} Kd7 {[%emt 0:00:43]} 39. Ra1 {[%emt 0:00:40]} Bc7 {[%emt 0:00:49]} 40. Ra2 {[%emt 0:00:57]} Rg8 {[%emt 0:01:23]} 41. Rf2 {[%emt 0:00:35]} Re8 {[%emt 0:00:50]} 42. Rf1 {[%emt 0:00:40]} Ra8 {[%emt 0:00:25]} 43. Nh4 {[%emt 0:00:26]} Rg8 {[%emt 0:00:16]} 44. Re1 {[%emt 0:00:34]} g5 {[%emt 0:01:21]} 45. fxg5 {[%emt 0:00:08]} fxg5 {[%emt 0:00:05]} 46. Nf3 {[%emt 0:00:12]} Bd6 {[%emt 0:01:10]} 47. Ra1 {[%emt 0:00:50]} h4 {[%emt 0:00:37]} 48. Ra7+ {[%emt 0:00:30]} Ke6 {[%emt 0:00:11]} 49. gxh4 {[%emt 0:00:24]} gxh4 {[%emt 0:00:11]} 50. Rh7 {[%emt 0:00:19]} Rg4 {[%emt 0:00:52]} 51. Rh6+ {[%emt 0:00:53]} Kd7 {[%emt 0:00:17]} 52. Rh7+ {[%emt 0:00:39]} Ke6 {[%emt 0:00:16]} 53. Rh5 {[%emt 0:00:29]} Kd7 {[%emt 0:00:34]} 54. Rh6 {[%emt 0:00:37]} Ke7 {[%emt 0:01:06]} 55. Nxh4 {[%emt 0:00:23]} Kd7 {[%emt 0:00:15]} 56. Nf3 {[%emt 0:00:29]} Re4 {[%emt 0:00:21]} 57. Rh7+ {[%emt 0:00:18]} Ke8 {[%emt 0:00:20]} 58. Rh6 {[%emt 0:01:01]} Bf4 {[%emt 0:00:15]} 59. Rh8+ {[%emt 0:00:22]} Kd7 {[%emt 0:00:26]} 60. Rh7+ {[%emt 0:00:30]} Ke6 {[%emt 0:00:30]} 61. Ne5 {[%emt 0:00:33]} Re3+ {[%emt 0:00:59]} 62. Kc2 {[%emt 0:00:03]} Bxe5 {[%emt 0:00:19]} 63. dxe5 {[%emt 0:00:06]} Rxe5 {[%emt 0:00:07]} 64. Rh6+ {[%emt 0:00:17]} Kd7 {[%emt 0:00:32]} 65. Kd3 {[%emt 0:00:18]} Re4 {[%emt 0:00:11]} 66. Rh7+ {[%emt 0:00:32]} Kd6 {[%emt 0:00:38]} 67. Rh6+ {[%emt 0:00:03]} Kc7 {[%emt 0:00:18]} 68. h4 {[%emt 0:01:43]} Rc4 {[%emt 0:00:28]} 69. h5 {[%emt 0:00:20]} d4 {[%emt 0:00:36]} 70. cxd4 {[%emt 0:00:46]} Rxb4 {[%emt 0:00:04]} 71. Rg6 {[%emt 0:00:39]} Rb3+ {[%emt 0:00:16]} 72. Kc2 {[%emt 0:00:26]} Rh3 {[%emt 0:00:13]} 73. h6 {[%emt 0:00:05]} Kb7 {[%emt 0:00:38]} 74. Kb2 {[%emt 0:00:41]} Kc7 {[%emt 0:00:07]} 75. Kc2 {[%emt 0:00:14]} b4 {[%emt 0:01:04]} 76. Kb2 {[%emt 0:00:22]} Rh4 {[%emt 0:00:47]} 77. Kb3 {[%emt 0:01:06]} Rxd4 {[%emt 0:00:31]} 78. h7 {[%emt 0:00:10]} Rh4 {[%emt 0:00:04]} 79. Rg8 {[%emt 0:00:35]} Rxh7 {[%emt 0:00:07]} 80. Kxb4 {[%emt 0:00:04]} Rh4+ {[%emt 0:00:17]} 81. Kc5 {[%emt 0:00:19]} Rh5+ {[%emt 0:00:07]} 82. Kc4 {[%emt 0:00:04]} 1/2-1/2

[Event "ESP-chT 2nd Division 2019"]
[Site "Linares"]
[Date "2019.08.21"]
[Round "4.17"]
[White "Nayhebaver, Martin"]
[Black "Bayo Milagro, Alvaro"]
[Result "1-0"]
[ECO "C78"]
[WhiteElo "2469"]
[BlackElo "2284"]
[Annotator "ChessBase"]
[PlyCount "82"]
[EventDate "2019.08.19"]
[EventType "team-tourn"]
[EventCountry "ESP"]
[SourceTitle "playchess.com"]
[Source "ChessBase"]
[SourceQuality "1"]
[TimeControl "5400+30"]

1. e4 {[%emt 0:00:00]} e5 {[%emt 0:02:08]} 2. Nf3 {[%emt 0:00:58]} Nc6 {[%emt 0:00:06]} 3. Bb5 {[%emt 0:00:34]} a6 {[%emt 0:00:07]} 4. Ba4 {[%emt 0:00:14]} Nf6 {[%emt 0:00:07]} 5. O-O {[%emt 0:00:24]} Bc5 {[%emt 0:00:05]} 6. c3 {[%emt 0:00:39]} b5 {[%emt 0:00:07]} 7. Bb3 {[%emt 0:00:24]} d6 {[%emt 0:00:11]} 8. d4 {[%emt 0:00:35]} Bb6 {[%emt 0:00:06]} 9. a4 {[%emt 0:00:26]} Bg4 {[%emt 0:00:08]} 10. Bg5 {[%emt 0:06:14]} Rb8 {[%emt 0:04:37]} 11. axb5 {[%emt 0:05:39]} axb5 {[%emt 0:00:10]} 12. Bd5 {[%emt 0:01:30]} Ne7 {[%emt 0:00:41]} 13. dxe5 {[%emt 0:10:05]} Nfxd5 {[%emt 0:06:00]} 14. exd5 {[%emt 0:18:16]} dxe5 {[%emt 0:01:09]} 15. Bxe7 {[%emt 0:01:55]} Qxe7 {[%emt 0:00:08]} 16. h3 {[%emt 0:03:51]} Bh5 {[%emt 0:01:34]} 17. Qe2 {[%emt 0:02:23]} O-O {[%emt 0:00:31]} 18. Qxe5 {[%emt 0:03:06]} Qxe5 {[%emt 0:00:08]} 19. Nxe5 {[%emt 0:00:03]} Rbd8 {[%emt 0:02:30]} 20. Nc6 {[%emt 0:02:44]} Rd7 {[%emt 0:00:49]} 21. Na3 {[%emt 0:01:45]} Kh8 {[%emt 0:07:54]} 22. g4 {[%emt 0:08:50]} Bg6 {[%emt 0:00:07]} 23. Rfd1 {[%emt 0:00:59]} Be4 {[%emt 0:00:28]} 24. Nxb5 {[%emt 0:01:33]} f5 {[%emt 0:02:45]} 25. gxf5 {[%emt 0:02:45]} g6 {[%emt 0:05:36]} 26. c4 {[%emt 0:03:32]} Rxf5 {[%emt 0:01:17]} 27. Nbd4 {[%emt 0:01:50]} Bxd4 {[%emt 0:05:41]} 28. Rxd4 {[%emt 0:02:31]} Rg5+ {[%emt 0:00:31]} 29. Kf1 {[%emt 0:00:13]} Bg2+ {[%emt 0:00:27]} 30. Ke2 {[%emt 0:00:08]} Bxh3 {[%emt 0:00:13]} 31. Rf4 {[%emt 0:02:18]} Kg7 {[%emt 0:03:01]} 32. b4 {[%emt 0:00:12]} h5 {[%emt 0:00:51]} 33. b5 {[%emt 0:00:32]} Rg2 {[%emt 0:03:26]} 34. Ra3 {[%emt 0:07:21]} Bg4+ {[%emt 0:00:16]} 35. Kf1 {[%emt 0:00:30]} Rh2 {[%emt 0:01:53]} 36. Kg1 {[%emt 0:00:07]} Rh3 {[%emt 0:00:30]} 37. Rg3 {[%emt 0:04:28]} g5 {[%emt 0:01:03]} 38. Re4 {[%emt 0:00:34]} Bf5 {[%emt 0:01:48]} 39. Re7+ {[%emt 0:03:19]} Rxe7 {[%emt 0:03:05]} 40. Nxe7 {[%emt 0:00:06]} Rxg3+ {[%emt 0:00:09]} 41. fxg3 {[%emt 0:00:04]} Be4 {[%emt 0:08:07]} 1-0

[Event "ESP-chT 2nd Division 2019"]
[Site "Linares"]
[Date "2019.08.21"]
[Round "4.18"]
[White "Lizuain Toni, Javier"]
[Black "Khamrakulov, Ibragim S."]
[Result "0-1"]
[ECO "B43"]
[WhiteElo "1884"]
[BlackElo "2429"]
[Annotator "NA"]
[PlyCount "106"]
[EventDate "2019.08.19"]
[EventType "team-tourn"]
[EventCountry "ESP"]
[SourceTitle "playchess.com"]
[Source "ChessBase"]
[SourceQuality "1"]
[TimeControl "5400+30"]

1. e4 {[%emt 0:00:00]} c5 {[%emt 0:00:00]} 2. Nf3 {[%emt 0:00:00]} e6 {[%emt 0:00:24]} 3. d4 {[%emt 0:00:45]} cxd4 {[%emt 0:00:06]} 4. Nxd4 {[%emt 0:00:12]} a6 {[%emt 0:00:07]} 5. Nc3 {[%emt 0:00:46]} Qc7 {[%emt 0:00:46]} 6. g3 {[%emt 0:00:30]} Nf6 {[%emt 0:00:33]} 7. Bg2 {[%emt 0:00:20]} Nc6 {[%emt 0:00:53]} 8. O-O {[%emt 0:00:16]} d6 {[%emt 0:00:21]} 9. Re1 {[%emt 0:00:57]} Bd7 {[%emt 0:00:19]} 10. a4 {[%emt 0:10:54]} Be7 {[%emt 0:00:41]} 11. Be3 {[%emt 0:04:24]} Ne5 {[%emt 0:07:36]} 12. h3 {[%emt 0:12:23]} Nc4 {[%emt 0:00:41]} 13. Bc1 {[%emt 0:16:32]} O-O {[%emt 0:00:20]} 14. b3 {[%emt 0:06:14]} Na5 {[%emt 0:00:53]} 15. Bb2 {[%emt 0:01:06]} Rab8 {[%emt 0:01:08]} 16. Qd3 {[%emt 0:01:56]} Rfc8 {[%emt 0:01:00]} 17. Rac1 {[%emt 0:02:08]} Qb6 {[%emt 0:07:31]} 18. Ba3 {[%emt 0:03:22]} Bf8 {[%emt 0:06:37]} 19. Red1 {[%emt 0:11:54]} Be8 {[%emt 0:02:26]} 20. Nf3 {[%emt 0:01:40]} Rd8 {[%emt 0:01:52]} 21. Qd4 {[%emt 0:04:09]} Qc7 {[%emt 0:00:41]} 22. Bb2 {[%emt 0:02:13]} Nc6 {[%emt 0:06:05]} 23. Qe3 {[%emt 0:00:56]} b5 {[%emt 0:00:27]} 24. axb5 {[%emt 0:00:15]} axb5 {[%emt 0:00:04]} 25. Ne2 {[%emt 0:01:40]} e5 {[%emt 0:04:29]} 26. Nc3 {[%emt 0:03:29]} Nb4 {[%emt 0:05:02]} 27. Ba3 {[%emt 0:05:21]} Qa5 {[%emt 0:02:26]} 28. Bxb4 {[%emt 0:01:21]} Qxb4 {[%emt 0:00:40]} 29. Ne1 {[%emt 0:00:12]} Rdc8 {[%emt 0:00:50]} 30. Nd5 {[%emt 0:01:03]} Nxd5 {[%emt 0:00:22]} 31. Rxd5 {[%emt 0:00:24]} Be7 {[%emt 0:02:05]} 32. Rcd1 {[%emt 0:01:56]} Rc7 {[%emt 0:13:16]} 33. Bf3 {[%emt 0:02:38]} Bd7 {[%emt 0:01:10]} 34. Kh2 {[%emt 0:01:25]} g6 {[%emt 0:03:04]} 35. R5d2 {[%emt 0:03:02]} h5 {[%emt 0:04:29]} 36. Rd5 {[%emt 0:00:25]} Be6 {[%emt 0:01:59]} 37. R5d3 {[%emt 0:00:41]} Kh7 {[%emt 0:00:42]} 38. Bg2 {[%emt 0:00:39]} h4 {[%emt 0:01:03]} 39. g4 {[%emt 0:00:46]} Rc6 {[%emt 0:01:10]} 40. R1d2 {[%emt 0:00:09]} Rbc8 {[%emt 0:00:49]} 41. Bf3 {[%emt 0:00:31]} Bd8 {[%emt 0:01:05]} 42. Bd1 {[%emt 0:00:26]} Bb6 {[%emt 0:02:05]} 43. Qg5 {[%emt 0:00:01]} Qxe4 {[%emt 0:01:02]} 44. Qxh4+ {[%emt 0:00:58]} Kg7 {[%emt 0:00:11]} 45. f3 {[%emt 0:00:30]} Qb4 {[%emt 0:01:59]} 46. Qg3 {[%emt 0:00:25]} Be3 {[%emt 0:01:14]} 47. Qg2 {[%emt 0:00:44]} Bxd2 {[%emt 0:02:08]} 48. Rxd2 {[%emt 0:00:09]} Qf4+ {[%emt 0:00:36]} 49. Kh1 {[%emt 0:00:17]} Ra6 {[%emt 0:00:20]} 50. Nd3 {[%emt 0:00:22]} Qf6 {[%emt 0:00:07]} 51. Nb4 {[%emt 0:01:16]} Ra1 {[%emt 0:00:17]} 52. Nd5 {[%emt 0:00:46]} Bxd5 {[%emt 0:00:35]} 53. Rxd5 {[%emt 0:00:01]} Rxc2 {[%emt 0:02:26]} 0-1

[Event "ESP-chT 2nd Division 2019"]
[Site "Linares"]
[Date "2019.08.21"]
[Round "4.19"]
[White "Soham Das"]
[Black "Roldan Marques, Marta"]
[Result "1-0"]
[ECO "C50"]
[WhiteElo "2339"]
[BlackElo "1886"]
[Annotator "NA"]
[PlyCount "67"]
[EventDate "2019.08.19"]
[EventType "team-tourn"]
[EventCountry "ESP"]
[SourceTitle "playchess.com"]
[Source "ChessBase"]
[SourceQuality "1"]
[TimeControl "5400+30"]

1. e4 {[%emt 0:00:00]} e5 {[%emt 0:00:00]} 2. Nf3 {[%emt 0:00:00]} Nc6 {[%emt 0:00:00]} 3. Bc4 {[%emt 0:00:00]} Bc5 {[%emt 0:00:00]} 4. O-O {[%emt 0:00:08]} Nf6 {[%emt 0:00:00]} 5. d3 {[%emt 0:00:06]} O-O {[%emt 0:00:28]} 6. h3 {[%emt 0:01:29]} d5 {[%emt 0:08:29]} 7. exd5 {[%emt 0:00:11]} Nxd5 {[%emt 0:00:05]} 8. Re1 {[%emt 0:00:40]} Re8 {[%emt 0:01:58]} 9. c3 {[%emt 0:12:51]} Nb6 {[%emt 0:08:13]} 10. Bb5 {[%emt 0:02:11]} f6 {[%emt 0:09:52]} 11. a4 {[%emt 0:03:50]} a6 {[%emt 0:04:21]} 12. Bxc6 {[%emt 0:00:35]} bxc6 {[%emt 0:00:05]} 13. a5 {[%emt 0:04:25]} Nd5 {[%emt 0:01:06]} 14. Nbd2 {[%emt 0:00:04]} Nf4 {[%emt 0:07:49]} 15. d4 {[%emt 0:01:39]} exd4 {[%emt 0:00:10]} 16. Ne4 {[%emt 0:02:22]} Ne6 {[%emt 0:03:56]} 17. cxd4 {[%emt 0:11:06]} Ba7 {[%emt 0:10:36]} 18. Be3 {[%emt 0:04:23]} Nf8 {[%emt 0:02:46]} 19. Nc3 {[%emt 0:12:29]} Ng6 20. Qa4 {[%emt 0:05:19]} Ne7 {[%emt 0:06:38]} 21. d5 {[%emt 0:09:27]} Bxe3 {[%emt 0:08:28]} 22. Rxe3 {[%emt 0:01:38]} Bd7 {[%emt 0:00:25]} 23. dxc6 {[%emt 0:03:05]} Nxc6 {[%emt 0:00:35]} 24. Rd3 {[%emt 0:04:21]} Ne5 {[%emt 0:06:58]} 25. Qa2+ {[%emt 0:01:16]} Kf8 {[%emt 0:08:10]} 26. Qa3+ {[%emt 0:03:54]} Kg8 {[%emt 0:01:04]} 27. Nxe5 {[%emt 0:02:57]} Rxe5 {[%emt 0:00:14]} 28. Rad1 {[%emt 0:01:56]} Re7 {[%emt 0:01:25]} 29. Qb3+ {[%emt 0:01:09]} Kf8 {[%emt 0:02:52]} 30. Nd5 {[%emt 0:05:03]} Be6 {[%emt 0:03:54]} 31. Nxe7 {[%emt 0:01:40]} Qxe7 {[%emt 0:00:05]} 32. Qb7 {[%emt 0:00:27]} Re8 {[%emt 0:01:16]} 33. Qxa6 {[%emt 0:00:08]} Qb4 {[%emt 0:00:33]} 34. Re3 {[%emt 0:00:06]} 1-0

[Event "ESP-chT 2nd Division 2019"]
[Site "Linares"]
[Date "2019.08.21"]
[Round "4.20"]
[White "Beaumont Arizaleta, Mikel"]
[Black "Calzetta Ruiz, Monica"]
[Result "0-1"]
[ECO "A22"]
[WhiteElo "1754"]
[BlackElo "2257"]
[Annotator "NA"]
[PlyCount "74"]
[EventDate "2019.08.19"]
[EventType "team-tourn"]
[EventCountry "ESP"]
[SourceTitle "playchess.com"]
[Source "ChessBase"]
[SourceQuality "1"]
[TimeControl "5400+30"]

1. c4 {[%emt 0:00:00]} e5 {[%emt 0:00:00]} 2. Nc3 {[%emt 0:00:21]} Nf6 {[%emt 0:00:06]} 3. g3 {[%emt 0:00:07]} d5 {[%emt 0:02:39]} 4. cxd5 {[%emt 0:02:46]} Nxd5 {[%emt 0:00:07]} 5. Bg2 {[%emt 0:00:45]} Nb6 {[%emt 0:00:30]} 6. d3 {[%emt 0:01:40]} Be7 {[%emt 0:00:58]} 7. Nf3 {[%emt 0:05:02]} Nc6 {[%emt 0:00:45]} 8. O-O {[%emt 0:00:15]} O-O {[%emt 0:00:16]} 9. Bd2 {[%emt 0:01:05]} Kh8 {[%emt 0:02:09]} 10. Rc1 {[%emt 0:03:12]} f5 {[%emt 0:01:14]} 11. a3 {[%emt 0:05:48]} Bf6 {[%emt 0:01:16]} 12. h4 {[%emt 0:04:49]} h6 {[%emt 0:04:09]} 13. b4 {[%emt 0:11:30]} Re8 {[%emt 0:08:45]} 14. Ne1 {[%emt 0:07:58]} a6 {[%emt 0:21:47]} 15. Na4 {[%emt 0:09:05]} Nxa4 {[%emt 0:01:48]} 16. Qxa4 {[%emt 0:03:09]} Bd7 {[%emt 0:09:55]} 17. Qd1 {[%emt 0:04:41]} Rb8 {[%emt 0:02:29]} 18. e3 {[%emt 0:05:46]} Ne7 {[%emt 0:01:39]} 19. Qc2 {[%emt 0:06:51]} Bc6 {[%emt 0:01:44]} 20. Nf3 {[%emt 0:06:46]} Qd5 {[%emt 0:04:31]} 21. Rfd1 {[%emt 0:05:21]} Rbd8 {[%emt 0:11:31]} 22. Ne1 {[%emt 0:02:15]} Qd7 {[%emt 0:00:24]} 23. Bc3 {[%emt 0:01:14]} Ba4 {[%emt 0:00:31]} 24. Qb2 {[%emt 0:00:34]} Bxd1 {[%emt 0:00:18]} 25. Rxd1 {[%emt 0:00:27]} Nd5 {[%emt 0:00:09]} 26. Bxd5 {[%emt 0:03:00]} Qxd5 {[%emt 0:00:09]} 27. Qe2 {[%emt 0:01:35]} c5 {[%emt 0:03:42]} 28. Qh5 {[%emt 0:03:14]} Qb3 {[%emt 0:01:33]} 29. Bd2 {[%emt 0:02:10]} e4 {[%emt 0:03:37]} 30. dxe4 {[%emt 0:01:46]} fxe4 {[%emt 0:00:18]} 31. Ng2 {[%emt 0:00:17]} Re5 {[%emt 0:02:43]} 32. Qg4 {[%emt 0:00:25]} Red5 {[%emt 0:00:42]} 33. Qe2 {[%emt 0:01:40]} Bc3 {[%emt 0:02:20]} 34. Nf4 {[%emt 0:00:25]} Rxd2 {[%emt 0:00:25]} 35. Rxd2 {[%emt 0:00:13]} Rxd2 {[%emt 0:00:13]} 36. Ng6+ {[%emt 0:00:29]} Kh7 {[%emt 0:00:25]} 37. Nf8+ {[%emt 0:01:01]} Kg8 0-1